bitfinex-derivatives/quotes_SOLF0:USTF0_20241105
["timestamp","ask_amount","ask_price","bid_price","bid_amount"]
[1730797230296,1.5666,162.71,162.7,10.44619479]
[1730797230506,1.30548,162.72,162.7,10.44619479]
[1730797232501,1.30548,162.72,162.71,3.0746]
[1730797234205,7.58619479,162.78,162.7,10.44619479]
[1730797234206,3.0733,162.78,162.74,3.0739]
[1730797234407,3.0733,162.78,162.75,7.58619479]
[1730797234605,7.58619479,162.8,162.75,7.58619479]
[1730797235009,3.0732,162.79,162.75,10.65989479]
[1730797235711,7.58619479,162.8,162.75,10.65989479]
[1730797236310,3.0733,162.78,162.75,10.65989479]
[1730797236509,3.0733,162.78,162.75,7.58619479]
[1730797238912,3.0733,162.78,162.75,10.65999479]
[1730797239219,3.0732,162.79,162.77,7.58619479]
[1730797239418,9.12909479,162.81,162.77,7.58619479]
[1730797239812,3.0733,162.79,162.78,6.25]
[1730797240918,3.0733,162.79,162.78,9.13]
[1730797242321,4.6157,162.81,162.78,16.71619479]
[1730797242522,4.6157,162.81,162.78,19.57619479]
[1730797243517,1.5429,162.81,162.78,19.57619479]
[1730797243815,1.5429,162.81,162.78,22.64939479]
[1730797244322,1.5429,162.81,162.78,19.57619479]
[1730797244619,1.5429,162.81,162.79,3.0731]
[1730797244810,1.5429,162.81,162.78,9.13]
[1730797245215,1.5429,162.81,162.78,19.57619479]
[1730797245428,3.073,162.8,162.78,19.57619479]
[1730797245918,1.5429,162.81,162.78,19.57619479]
[1730797246119,4.6156,162.81,162.78,19.57619479]
[1730797246319,4.6156,162.81,162.8,7.58619479]
[1730797246817,1.5429,162.81,162.8,7.58619479]
[1730797247419,1.5429,162.81,162.8,10.65909479]
[1730797248618,1.5429,162.81,162.78,11.99]
[1730797248619,4.6157,162.81,162.78,9.13]
[1730797248826,4.6157,162.81,162.18,11.87591024]
[1730797248827,7.58619479,162.79,162.52,6.41494362]
[1730797249032,7.0271,162.8,162.46,2.81183849]
[1730797249219,7.58619479,162.67,162.47,1.48689236]
[1730797249525,4.84,162.76,162.68,4.18]
[1730797249735,4.84,162.76,162.48,4.84]
[1730797249736,9.0,162.75,162.63,7.58619479]
[1730797250028,38.21852472,162.75,162.62,7.58619479]
[1730797250227,3.076,162.64,162.55,3.0776]
[1730797250421,3.076,162.64,162.53,4.84]
[1730797250422,38.21852472,162.75,162.49,1.3664]
[1730797250723,7.58619479,162.69,162.63,7.58619479]
[1730797250925,7.58619479,162.69,162.56,9.84]
[1730797251326,7.58619479,162.68,162.62,7.58619479]
[1730797251925,29.21800274,162.75,162.62,7.58619479]
[1730797252122,34.05800274,162.75,162.65,7.58619479]
[1730797252323,7.58619479,162.72,162.65,7.58619479]
[1730797252928,7.58619479,162.71,162.65,7.58619479]
[1730797253223,7.58619479,162.7,162.58,1.3072]
[1730797253428,11.80747836,162.72,162.61,11.80747836]
[1730797254420,3.0752,162.68,162.61,11.80747836]
[1730797255026,1.3877,162.71,162.61,11.80747836]
[1730797255225,11.80747836,162.74,162.64,11.80747836]
[1730797255426,11.80747836,162.78,162.68,11.80747836]
[1730797255626,3.0733,162.78,162.7,14.88217836]
[1730797255831,11.80747836,162.78,162.69,4.84]
[1730797257225,3.0737,162.76,162.69,4.84]
[1730797257422,11.80747836,162.78,162.69,4.84]
[1730797257625,3.0739,162.75,162.69,4.84]
[1730797259834,3.0742,162.73,162.69,4.84]
[1730797262033,11.80747836,162.76,162.66,14.88297836]
[1730797262229,73.44801374,162.85,162.68,11.80747836]
[1730797262438,3.0725,162.82,162.75,11.80747836]
[1730797262625,14.19916866,162.84,162.68,11.80747836]
[1730797262626,1.3424,162.84,162.77,11.80747836]
[1730797263026,4.4147,162.84,162.78,3.0733]
[1730797263232,1.3424,162.84,162.74,16.64747836]
[1730797263532,3.0724,162.83,162.78,3.0733]
[1730797264525,1.3886,162.84,162.74,16.64747836]
[1730797264728,1.3886,162.84,162.79,3.0729]
[1730797265531,1.3886,162.84,162.77,11.80747836]
[1730797265733,13.19607836,162.84,162.74,16.64747836]
[1730797265935,1.3771,162.83,162.74,16.64747836]
[1730797266133,3.0727,162.81,162.76,3.0736]
[1730797267041,3.0727,162.81,162.75,3.0738]
[1730797267237,3.0727,162.81,162.75,7.1438]
[1730797267635,3.0727,162.81,162.68,11.80747836]
[1730797267636,11.80747836,162.8,162.7,11.80747836]
[1730797267937,13.16927836,162.8,162.7,11.80747836]
[1730797268145,3.0738,162.76,162.7,14.88227836]
[1730797268347,11.80747836,162.78,162.68,16.64747836]
[1730797268637,3.0738,162.76,162.7,3.0747]
[1730797268840,3.0738,162.76,162.68,16.64747836]
[1730797269435,3.0744,162.73,162.69,6.03]
[1730797269647,11.80747836,162.76,162.69,6.03]
[1730797269835,11.80747836,162.73,162.69,6.03]
[1730797270036,11.80747836,162.75,162.69,6.03]
[1730797270234,11.80747836,162.73,162.69,1.7932]
[1730797270534,3.0755,162.67,162.62,3.0761]
[1730797270938,11.80747836,162.7,162.61,11.80747836]
[1730797271333,11.80747836,162.7,162.51,44.24]
[1730797271534,11.80747836,162.68,162.56,11.80747836]
[1730797271834,3.0759,162.64,162.59,3.0767]
[1730797272031,11.80747836,162.68,162.6,5.5]
[1730797272232,11.80747836,162.66,162.6,5.5]
[1730797272835,3.0759,162.65,162.6,5.5]
[1730797273038,11.80747836,162.66,162.6,5.5]
[1730797273435,3.0759,162.65,162.6,5.5]
[1730797273636,11.80747836,162.66,162.6,5.5]
[1730797274640,3.0762,162.63,162.6,5.5]
[1730797274845,3.0762,162.63,162.6,11.92]
[1730797275042,3.0762,162.63,162.62,73.4027]
[1730797276346,3.0762,162.63,162.62,71.2847]
[1730797276747,3.0765,162.61,162.6,11.92]
[1730797276935,14.88397836,162.61,162.6,11.92]
[1730797277141,14.88397836,162.61,162.6,9.8018]
[1730797277343,14.88397836,162.61,162.6,7.6836]
[1730797277740,3.0773,162.57,162.52,1.2834]
[1730797278147,11.80747836,162.61,162.53,4.92]
[1730797278444,3.0768,162.6,162.53,4.92]
[1730797279044,3.0768,162.6,162.55,3.0776]
[1730797279441,3.0768,162.6,162.56,4.92]
[1730797279845,3.0768,162.6,162.56,7.9974]
[1730797280041,11.80747836,162.65,162.56,4.92]
[1730797280247,11.80747836,162.77,162.58,11.80747836]
[1730797280248,11.80747836,162.69,162.58,11.80747836]
[1730797280646,3.0759,162.65,162.58,11.80747836]
[1730797280953,11.80747836,162.67,162.6,3.0765]
[1730797281153,11.80747836,162.67,162.58,11.80747836]
[1730797281555,11.80747836,162.67,162.61,3.0764]
[1730797281855,16.54747836,162.7,162.6,11.80747836]
[1730797282057,16.54747836,162.7,162.61,1.3439]
[1730797282258,32.30792405,162.68,162.61,1.3439]
[1730797282651,11.80747836,162.7,162.61,1.3439]
[1730797282852,11.80747836,162.74,162.64,11.80747836]
[1730797283051,11.80747836,162.74,162.65,1.3505]
[1730797283450,18.88309349,162.76,162.65,1.3505]
[1730797283955,3.0742,162.74,162.69,3.0748]
[1730797284751,3.074,162.75,162.7,3.0746]
[1730797285357,3.0742,162.74,162.7,3.0746]
[1730797285555,4.74,162.77,162.68,3.0751]
[1730797285853,3.0746,162.71,162.67,4.74]
[1730797286058,18.88309349,162.76,162.65,4.4261]
[1730797286752,18.88309349,162.74,162.65,3.0756]
[1730797286954,3.075,162.69,162.65,3.0757]
[1730797287858,3.0748,162.7,162.66,7.3555]
[1730797288264,18.88309349,162.74,162.66,4.28]
[1730797288564,3.0745,162.72,162.66,7.3555]
[1730797288868,18.88309349,162.74,162.66,7.3555]
[1730797289063,23.62309349,162.77,162.66,7.3555]
[1730797289257,3.0747,162.71,162.66,7.3555]
[1730797289462,3.0747,162.71,162.66,4.28]
[1730797289662,3.0747,162.71,162.67,3.0753]
[1730797290363,3.0747,162.71,162.68,3.0752]
[1730797291568,3.0743,162.73,162.69,3.075]
[1730797291765,23.62309349,162.77,162.66,4.28]
[1730797291958,3.0745,162.72,162.66,7.3554]
[1730797292258,18.88309349,162.74,162.66,4.28]
[1730797293167,3.0746,162.71,162.67,3.0753]
[1730797293467,18.88309349,162.74,162.66,4.28]
[1730797293763,18.88309349,162.71,162.66,4.28]
[1730797293967,23.62309349,162.71,162.66,4.28]
[1730797294173,3.0753,162.67,162.66,4.28]
[1730797296358,3.0766,162.61,162.57,1.2783]
[1730797298268,3.0766,162.61,162.57,4.3555]
[1730797298765,4.74,162.65,162.57,1.2783]
[1730797298766,3.0759,162.63,162.57,1.2783]
[1730797298963,3.0759,162.63,162.59,3.0764]
[1730797302369,3.0759,162.63,162.57,1.2783]
[1730797302370,23.62309349,162.68,162.57,1.2783]
[1730797302569,3.0762,162.61,162.57,4.3551]
[1730797303067,23.62309349,162.68,162.57,9.2751]
[1730797303263,18.88309349,162.65,162.57,4.92]
[1730797303666,3.0763,162.61,162.57,4.92]
[1730797303964,18.88309349,162.65,162.57,7.9969]
[1730797304665,3.0764,162.6,162.57,7.9969]
[1730797305060,3.0763,162.61,162.57,7.9969]
[1730797306976,3.0763,162.61,162.58,3.0767]
[1730797308472,18.88309349,162.65,162.59,4.92]
[1730797308673,3.0761,162.62,162.59,7.9965]
[1730797309079,29.22603275,162.71,162.59,4.92]
[1730797309374,11.80832868,162.7,162.6,11.80832868]
[1730797309671,3.0761,162.62,162.59,4.92]
[1730797309874,11.80832868,162.65,162.59,4.92]
[1730797310070,11.80832868,162.63,162.59,4.92]
[1730797310268,3.0764,162.6,162.59,4.92]
[1730797310872,11.80832868,162.63,162.59,4.92]
[1730797311071,11.80832868,162.67,162.59,4.92]
[1730797311773,3.0758,162.64,162.6,3.0762]
[1730797313171,3.0758,162.63,162.6,3.0762]
[1730797313863,11.80832868,162.67,162.59,4.92]
[1730797314063,11.80832868,162.69,162.59,4.92]
[1730797314274,11.80832868,162.69,162.6,17.59642868]
[1730797314977,29.22603275,162.71,162.62,11.80832868]
[1730797315169,29.22603275,162.71,162.63,2.7102]
[1730797315766,11.80832868,162.74,162.64,11.80832868]
[1730797316178,3.0742,162.72,162.68,3.0748]
[1730797316378,3.0742,162.72,162.64,11.80832868]
[1730797316379,11.80832868,162.74,162.64,11.80832868]
[1730797316569,11.80832868,162.76,162.67,11.80832868]
[1730797316771,3.0735,162.76,162.72,3.0739]
[1730797316966,11.80832868,162.76,162.68,1.3281]
[1730797317171,11.80832868,162.74,162.65,16.26832868]
[1730797317373,11.80832868,162.74,162.66,3.0751]
[1730797317879,11.80832868,162.74,162.65,16.26832868]
[1730797318077,3.0743,162.71,162.66,3.075]
[1730797318378,3.0743,162.71,162.65,16.26832868]
[1730797319267,11.80832868,162.74,162.65,16.26832868]
[1730797319473,3.0741,162.73,162.65,16.26832868]
[1730797319880,11.80832868,162.76,162.67,11.80832868]
[1730797320180,14.88182868,162.76,162.67,11.80832868]
[1730797320370,14.88182868,162.76,162.71,3.0741]
[1730797320567,3.0735,162.75,162.71,3.0741]
[1730797321478,11.80832868,162.76,162.73,3.0739]
[1730797321683,11.80832868,162.76,162.67,11.80832868]
[1730797321981,11.80832868,162.78,162.69,11.80832868]
[1730797322283,4.46,162.79,162.71,11.80832868]
[1730797322576,11.80832868,162.8,162.72,1.3287]
[1730797322774,11.80832868,162.84,162.73,11.80832868]
[1730797323980,3.0721,162.83,162.78,3.0728]
[1730797324484,3.0724,162.81,162.77,3.0731]
[1730797324779,11.80832868,162.8,162.75,4.46]
[1730797324984,3.0726,162.81,162.76,3.0732]
[1730797325188,4.46,162.88,162.75,4.46]
[1730797325189,11.80832868,162.8,162.75,4.46]
[1730797325582,3.0729,162.79,162.75,7.5335]
[1730797326582,11.80832868,162.8,162.75,4.46]
[1730797326880,11.80832868,162.77,162.72,1.3287]
[1730797327384,11.80832868,162.75,162.7,2.67]
[1730797328286,3.0739,162.74,162.7,5.7444]
[1730797328681,11.80832868,162.75,162.7,2.67]
[1730797328888,11.80832868,162.78,162.7,2.67]
[1730797329389,3.0735,162.76,162.72,3.0741]
[1730797331191,4.91,162.75,162.72,3.0741]
[1730797331790,4.91,162.75,162.72,7.994]
[1730797332379,4.91,162.75,162.73,3.0738]
[1730797332889,4.91,162.75,162.72,4.92]
[1730797333089,4.91,162.75,162.74,3.0737]
[1730797334080,3.0728,162.79,162.75,3.0734]
[1730797334285,3.0728,162.79,162.72,4.92]
[1730797334589,3.0724,162.81,162.77,3.073]
[1730797337289,3.0727,162.8,162.76,3.0733]
[1730797340504,18.89822311,162.81,162.72,9.12]
[1730797340997,3.0731,162.78,162.74,3.0737]
[1730797342399,4.46,162.86,162.72,12.194]
[1730797342400,18.89822311,162.79,162.72,12.194]
[1730797342799,18.89822311,162.79,162.72,9.12]
[1730797342989,18.89822311,162.79,162.73,3.0739]
[1730797343490,3.0726,162.8,162.74,3.0736]
[1730797343694,3.0726,162.8,162.72,9.12]
[1730797344301,18.89822311,162.81,162.72,9.12]
[1730797344492,3.0728,162.79,162.72,9.12]
[1730797345900,18.89822311,162.81,162.72,9.12]
[1730797346204,3.0726,162.8,162.72,9.12]
[1730797346602,3.0726,162.8,162.76,3.0732]
[1730797347103,3.0728,162.79,162.76,3.0732]
[1730797347903,3.0733,162.77,162.73,3.0738]
[1730797348305,3.0733,162.77,162.72,4.2]
[1730797348601,3.0733,162.77,162.74,3.0737]
[1730797348908,0.0033,162.77,162.74,3.0737]
[1730797349104,18.89822311,162.81,162.74,3.0737]
[1730797349492,18.89822311,162.81,162.75,4.92]
[1730797350097,3.0729,162.79,162.76,3.0733]
[1730797350704,3.0729,162.79,162.75,7.9935]
[1730797351298,14.88167183,162.79,162.75,7.9935]
[1730797352004,11.80877183,162.82,162.75,4.92]
[1730797353107,11.80877183,162.84,162.75,4.92]
[1730797353296,14.88067183,162.84,162.76,1.2807]
[1730797353605,3.0719,162.84,162.77,4.2]
[1730797353808,3.0719,162.84,162.77,6.9388]
[1730797355004,3.0719,162.84,162.81,3.0723]
[1730797355200,11.80877183,162.86,162.77,6.9388]
[1730797355404,3.072,162.83,162.77,6.9388]
[1730797355606,11.80877183,162.84,162.77,5.5373]
[1730797355807,3.0724,162.82,162.78,4.91]
[1730797356007,3.0724,162.82,162.78,11.57]
[1730797356201,11.80877183,162.84,162.78,11.57]
[1730797356607,3.0722,162.83,162.78,11.57]
[1730797356798,3.0722,162.83,162.79,3.0726]
[1730797357000,11.80877183,162.84,162.78,11.57]
[1730797358002,14.88067183,162.84,162.78,11.57]
[1730797358805,14.88067183,162.84,162.8,3.0724]
[1730797359114,3.0718,162.85,162.78,11.57]
[1730797359313,1.3648,162.93,162.83,3.0719]
[1730797359612,3.0713,162.87,162.83,3.0719]
[1730797360201,3.0713,162.87,162.83,3.072]
[1730797361411,3.0715,162.86,162.83,3.072]
[1730797361613,11.80877183,162.89,162.83,3.072]
[1730797362311,3.0715,162.86,162.82,3.0721]
[1730797362815,11.80877183,162.89,162.83,3.0719]
[1730797363409,3.0714,162.87,162.83,3.0719]
[1730797365314,3.0716,162.86,162.82,7.2522]
[1730797368122,3.0711,162.88,162.84,3.0717]
[1730797368717,3.0711,162.88,162.85,3.0716]
[1730797369028,3.071,162.89,162.85,3.0716]
[1730797370031,3.0711,162.88,162.85,3.0716]
[1730797370926,9.54987183,162.91,162.85,3.0716]
[1730797371435,3.0709,162.9,162.86,3.0713]
[1730797371837,11.80877183,162.93,162.87,3.92]
[1730797372140,11.80877183,162.96,162.89,3.0707]
[1730797372630,3.0703,162.93,162.89,3.0707]
[1730797375239,11.80877183,162.96,162.89,3.0707]
[1730797376138,11.80877183,162.96,162.89,7.9907]
[1730797376334,3.0703,162.93,162.89,7.9907]
[1730797378139,11.80877183,162.96,162.89,7.9907]
[1730797378740,3.0707,162.9,162.89,4.92]
[1730797379443,8.08947183,162.92,162.89,4.92]
[1730797380252,3.0707,162.9,162.89,4.92]
[1730797382344,11.80877183,162.94,162.89,4.92]
[1730797382543,1.95,162.93,162.89,4.92]
[1730797384652,3.0707,162.9,162.89,4.92]
[1730797387051,3.0705,162.91,162.89,4.92]
[1730797387253,1.95,162.93,162.89,4.92]
[1730797387754,3.0705,162.92,162.89,7.9908]
[1730797388849,3.0707,162.9,162.89,4.92]
[1730797389050,1.95,162.93,162.89,4.92]
[1730797390552,3.0704,162.92,162.89,7.9909]
[1730797390957,1.95,162.93,162.89,4.92]
[1730797392258,3.0705,162.92,162.89,4.92]
[1730797392650,3.0705,162.92,162.89,7.9909]
[1730797392855,1.95,162.93,162.89,4.92]
[1730797393157,5.0202,162.93,162.9,3.0706]
[1730797395059,5.0202,162.93,162.89,15.5424482]
[1730797395459,7.5516482,162.92,162.89,7.9908]
[1730797395652,10.6220482,162.92,162.89,7.9908]
[1730797395848,1.3057,163.0,162.9,3.0706]
[1730797396053,7.5516482,162.95,162.89,12.4716482]
[1730797396255,7.5516482,162.93,162.89,4.92]
[1730797396754,7.5516482,162.93,162.89,9.34]
[1730797396957,7.5516482,162.92,162.89,9.34]
[1730797397261,7.5516482,162.92,162.9,3.0707]
[1730797399756,2.6673,163.0,162.89,16.8916482]
[1730797399957,10.6214482,162.95,162.92,3.0702]
[1730797400157,7.5516482,162.93,162.89,9.34]
[1730797400359,7.5516482,162.92,162.9,3.0707]
[1730797401063,7.5516482,162.92,162.91,6.07]
[1730797402856,7.5516482,162.92,162.91,10.81]
[1730797403058,10.6219482,162.92,162.91,10.81]
[1730797409069,3.74,162.97,162.91,10.81]
[1730797409269,10.6218482,162.93,162.91,10.81]
[1730797409471,10.6218482,162.93,162.91,4.74]
[1730797410670,12.5618482,162.93,162.91,4.74]
[1730797411169,5.0102,162.93,162.91,4.74]
[1730797411464,7.5516482,162.92,162.91,4.74]
[1730797411665,1.94,162.93,162.91,4.74]
[1730797411868,1.94,162.93,162.92,3.0703]
[1730797412057,1.94,162.93,162.91,4.74]
[1730797412367,1.94,162.93,162.92,6.8103]
[1730797412575,7.5516482,162.96,162.92,11.2916482]
[1730797412766,7.5516482,162.96,162.92,3.74]
[1730797413068,7.5516482,162.96,162.94,3.0698]
[1730797413466,1.4098,163.01,162.93,7.5516482]
[1730797413675,7.5516482,162.97,162.95,3.0697]
[1730797414061,1.4072,163.04,162.95,7.4797]
[1730797414260,10.6208482,162.98,162.95,7.4797]
[1730797414665,1.4072,163.04,162.96,3.0695]
[1730797414870,7.5516482,162.98,162.95,4.41]
[1730797415068,1.4072,163.04,162.95,4.41]
[1730797415467,7.5516482,162.96,162.95,4.41]
[1730797416574,7.5516482,162.97,162.95,4.41]
[1730797416769,1.4072,163.04,162.95,4.41]
[1730797416770,7.5516482,162.96,162.95,4.41]
[1730797417069,10.6212482,162.96,162.95,4.41]
[1730797417778,3.0702,162.93,162.91,4.74]
[1730797418069,7.5516482,162.92,162.89,3.74]
[1730797418277,10.6218482,162.93,162.89,3.74]
[1730797418465,7.5516482,162.93,162.89,3.74]
[1730797418672,7.5516482,162.93,162.9,3.0706]
[1730797419174,7.5516482,162.93,162.89,3.0708]
[1730797419175,10.6219482,162.93,162.89,3.0708]
[1730797419370,1.3845,163.01,162.88,3.74]
[1730797419371,7.5516482,162.9,162.88,3.74]
[1730797419577,7.5516482,162.9,162.89,4.92]
[1730797420070,3.0706,162.91,162.89,4.92]
[1730797420071,10.6222482,162.91,162.89,4.92]
[1730797420272,7.5516482,162.91,162.89,4.92]
[1730797421174,10.6220482,162.92,162.89,4.92]
[1730797421381,7.5516482,162.92,162.89,7.9908]
[1730797421579,7.5516482,162.92,162.89,4.92]
[1730797421768,7.5516482,162.93,162.89,4.92]
[1730797421964,7.5516482,162.92,162.9,3.0706]
[1730797422173,7.5516482,162.92,162.89,4.92]
[1730797422473,7.5516482,162.92,162.89,7.9908]
[1730797422878,7.5516482,162.92,162.89,14.0408]
[1730797424581,7.5516482,162.92,162.89,10.97]
[1730797424878,10.6220482,162.92,162.89,10.97]
[1730797425880,7.5516482,162.91,162.89,10.97]
[1730797426378,7.5516482,162.92,162.89,10.97]
[1730797426983,10.6216482,162.94,162.89,10.97]
[1730797427277,7.5516482,162.94,162.89,18.5216482]
[1730797427481,7.5516482,162.94,162.92,3.0703]
[1730797427690,7.5516482,162.94,162.89,18.5216482]
[1730797428384,7.5516482,162.94,162.91,3.0704]
[1730797428582,10.6216482,162.94,162.91,3.0704]
[1730797429181,10.6217482,162.93,162.9,3.0707]
[1730797429581,7.5516482,162.93,162.9,3.0707]
[1730797429886,3.0701,162.94,162.89,10.97]
[1730797430083,7.5516482,162.93,162.89,10.97]
[1730797430984,7.5516482,162.93,162.9,3.0707]
[1730797431180,7.5516482,162.94,162.89,18.5216482]
[1730797431379,7.5516482,162.95,162.9,7.5516482]
[1730797431787,7.5516482,162.95,162.93,3.07]
[1730797432388,18.89393563,163.01,162.93,3.07]
[1730797432591,7.5516482,162.95,162.93,3.07]
[1730797433183,54.17084954,163.02,162.94,7.5516482]
[1730797433387,7.5516482,163.0,162.96,3.0694]
[1730797433592,7.5516482,162.98,162.93,3.6]
[1730797433788,7.5516482,162.97,162.95,3.0697]
[1730797434089,7.5516482,162.97,162.93,11.1516482]
[1730797434287,7.5516482,162.98,162.95,4.92]
[1730797434891,7.5516482,162.99,162.95,4.92]
[1730797435090,7.5516482,162.98,162.96,3.0695]
[1730797435289,7.5516482,162.97,162.95,2.8019]
[1730797435490,7.5516482,162.96,162.85,7.5516482]
[1730797435692,7.5516482,162.89,162.85,7.5516482]
[1730797436491,10.6222482,162.91,162.86,3.0713]
[1730797437086,7.5516482,162.96,162.9,7.5516482]
[1730797437292,11.79525548,162.99,162.89,11.79525548]
[1730797437485,3.0695,162.97,162.92,3.0703]
[1730797438290,3.0696,162.96,162.92,3.0703]
[1730797438885,3.0691,162.99,162.92,15.39525548]
[1730797439196,12.03157499,163.11,162.92,15.39525548]
[1730797439197,31.70827692,163.05,162.92,15.39525548]
[1730797439385,3.0688,163.01,162.96,3.0694]
[1730797440795,11.79525548,163.01,162.92,15.39525548]
[1730797441200,11.79525548,163.01,162.92,3.6]
[1730797441900,11.79525548,162.99,162.92,3.6]
[1730797442091,3.6,163.05,162.9,3.9544]
[1730797442092,11.79525548,162.96,162.9,3.9544]
[1730797442294,11.79525548,162.94,162.86,15.39525548]
[1730797442699,3.0702,162.93,162.86,15.39525548]
[1730797442992,11.79525548,162.94,162.86,3.6]
[1730797443200,3.0706,162.91,162.86,3.0713]
[1730797444195,14.86575548,162.92,162.87,7.9811]
[1730797444600,11.79525548,162.92,162.87,7.9811]
[1730797445396,11.79525548,162.94,162.88,3.071]
[1730797445595,11.79525548,162.94,162.87,4.91]
[1730797445797,3.0703,162.92,162.87,4.91]
[1730797446298,3.0703,162.92,162.87,7.9812]
[1730797448199,3.0703,162.92,162.87,4.91]
[1730797448504,3.0705,162.91,162.87,4.91]
[1730797449696,3.0705,162.91,162.87,7.9811]
[1730797449892,3.0704,162.92,162.87,4.91]
[1730797450604,3.0704,162.92,162.88,3.071]
[1730797452403,11.27005201,162.97,162.87,16.70525548]
[1730797452601,11.79525548,162.97,162.87,16.70525548]
[1730797452796,3.0698,162.95,162.91,3.0705]
[1730797453801,11.79525548,162.97,162.87,16.70525548]
[1730797454003,3.0701,162.95,162.91,3.0707]
[1730797454306,11.79525548,162.97,162.91,3.0707]
[1730797455308,3.0701,162.95,162.91,3.0707]
[1730797455705,11.79525548,162.95,162.9,3.071]
[1730797455909,3.0708,162.92,162.87,4.91]
[1730797456608,12.98211752,163.06,162.88,4.52]
[1730797456805,11.79525548,163.05,162.93,11.79525548]
[1730797457006,3.0684,163.04,162.96,3.0698]
[1730797457307,11.79525548,163.0,162.89,11.79525548]
[1730797457909,14.86405548,163.02,162.91,11.79525548]
[1730797458104,11.79525548,163.02,162.91,11.79525548]
[1730797458309,11.79525548,163.02,162.96,3.0697]
[1730797458503,2.3425,163.03,162.93,11.79525548]
[1730797459712,2.3425,163.03,162.97,3.0695]
[1730797460108,11.79525548,163.02,162.93,11.79525548]
[1730797460302,14.86405548,163.02,162.96,3.0699]
[1730797460912,3.069,163.01,162.95,3.07]
[1730797461106,11.79525548,163.0,162.9,4.52]
[1730797461614,14.86445548,163.0,162.94,3.0702]
[1730797462000,11.79525548,163.0,162.9,4.52]
[1730797462305,2.3425,163.03,162.9,4.52]
[1730797462505,2.3425,163.03,162.94,11.79525548]
[1730797463209,2.3425,163.03,162.98,3.0695]
[1730797463210,5.4111,163.03,162.98,3.0695]
[1730797463411,2.3425,163.03,162.98,3.0695]
[1730797463607,14.13775548,163.03,162.98,3.0695]
[1730797464004,17.20645548,163.03,162.98,3.0695]
[1730797464312,17.20645548,163.03,162.99,3.0693]
[1730797464803,14.13775548,163.03,162.94,11.79525548]
[1730797465604,14.13775548,163.03,162.99,3.0692]
[1730797465807,14.13775548,163.03,162.94,11.79525548]
[1730797466512,2.3425,163.03,163.0,3.0691]
[1730797466710,2.3425,163.03,162.96,11.79525548]
[1730797466906,2.3425,163.03,163.0,3.069]
[1730797467911,2.3425,163.03,162.96,11.79525548]
[1730797468114,2.3425,163.03,162.99,3.0693]
[1730797468816,2.3425,163.03,162.96,11.79525548]
[1730797469114,2.3425,163.03,163.0,3.0691]
[1730797469318,9.88557221,163.03,163.0,3.0691]
[1730797470512,7.54307221,163.01,163.0,3.0691]
[1730797474118,1.0005,163.03,163.0,3.0691]
[1730797474313,7.54307221,163.02,163.0,3.0691]
[1730797474613,7.54307221,163.02,162.98,7.54307221]
[1730797474817,7.54307221,163.02,163.0,3.069]
[1730797475023,7.54307221,163.02,162.98,7.54307221]
[1730797475207,7.54307221,163.02,163.01,3.0689]
[1730797475909,7.54307221,163.02,162.99,3.0693]
[1730797476117,7.54307221,163.0,162.99,3.0693]
[1730797479216,7.54307221,163.0,162.99,14.7593]
[1730797480020,7.54307221,163.0,162.99,11.69]
[1730797481534,7.54307221,163.0,162.99,14.7593]
[1730797481835,7.54307221,163.01,162.99,11.69]
[1730797483331,7.54307221,163.01,162.99,14.7592]
[1730797485530,7.54307221,163.0,162.99,14.7592]
[1730797485730,1.378,163.04,163.01,3.0688]
[1730797485935,7.54307221,163.02,163.01,3.0688]
[1730797488132,1.378,163.04,162.99,11.69]
[1730797488337,12.98211752,163.06,162.99,11.69]
[1730797488338,16.05021752,163.06,163.03,3.0685]
[1730797488543,7.54307221,163.04,163.03,3.0685]